[Event "January 2 Late 2024"]
[Site "https://www.chess.com"]
[Date "2024.01.02"]
[Round "6"]
[White "Lewtak, Damian"]
[Black "Roberson, Peter T"]
[Result "1/2-1/2"]
[Board "45"]
[TimeControl "180+1"]
[WhiteFideId "1141724"]
[BlackFideId "412384"]
[WhiteElo "2726"]
[BlackElo "2583"]
[WhiteTeam "POL"]
[BlackTeam "ENG"]
[WhiteClock "0:00:15"]
[BlackClock "0:00:04"]

1. e4 {[%clk 0:03:00]}  c5 {[%clk 0:02:59]} 2. Nf3 {[%clk 0:03:00]}  d6 {[%clk 0:03:00]} 3. Bb5+ {[%clk 0:03:01]}  Bd7 {[%clk 0:02:57]} 4. Bxd7+ {[%clk 0:03:01]}  Nxd7 {[%clk 0:02:57]} 5. O-O {[%clk 0:03:02]}  Ngf6 {[%clk 0:02:58]} 6. Qe2 {[%clk 0:03:02]}  e6 {[%clk 0:02:58]} 7. c3 {[%clk 0:03:03]}  Be7 {[%clk 0:02:58]} 8. d4 {[%clk 0:03:04]}  O-O {[%clk 0:02:58]} 9. e5 {[%clk 0:03:01]}  Ne8 {[%clk 0:02:59]} 10. Re1 {[%clk 0:02:51]}  Qb6 {[%clk 0:02:55]} 11. Nbd2 {[%clk 0:02:49]}  cxd4 {[%clk 0:02:56]} 12. cxd4 {[%clk 0:02:49]}  Rc8 {[%clk 0:02:55]} 13. Nf1 {[%clk 0:02:46]}  Nc7 {[%clk 0:02:45]} 14. Ng3 {[%clk 0:02:44]}  Nd5 {[%clk 0:02:45]} 15. Qe4 {[%clk 0:02:25]}  dxe5 {[%clk 0:02:42]} 16. dxe5 {[%clk 0:02:21]}  Nc5 {[%clk 0:02:43]} 17. Qe2 {[%clk 0:02:03]}  Rfd8 {[%clk 0:02:19]} 18. Bg5 {[%clk 0:02:02]}  Bxg5 {[%clk 0:02:19]} 19. Nxg5 {[%clk 0:02:03]}  h6 {[%clk 0:02:19]} 20. N5e4 {[%clk 0:02:01]}  Nxe4 {[%clk 0:02:15]} 21. Nxe4 {[%clk 0:02:02]}  Nf4 {[%clk 0:02:15]} 22. Qg4 {[%clk 0:01:58]}  Nd3 {[%clk 0:02:15]} 23. Re3 {[%clk 0:01:55]}  Qxb2 {[%clk 0:02:06]} 24. Rf1 {[%clk 0:01:49]}  Nxe5 {[%clk 0:01:58]} 25. Qg3 {[%clk 0:01:41]}  Ng6 {[%clk 0:01:47]} 26. h4 {[%clk 0:01:36]}  Qxa2 {[%clk 0:01:36]} 27. h5 {[%clk 0:01:36]}  Nf8 {[%clk 0:01:36]} 28. Qe5 {[%clk 0:01:11]}  Nd7 {[%clk 0:00:39]} 29. Qd6 {[%clk 0:00:51]}  Nc5 {[%clk 0:00:30]} 30. Nf6+ {[%clk 0:00:51]}  gxf6 {[%clk 0:00:21]} 31. Rg3+ {[%clk 0:00:50]}  Kh7 {[%clk 0:00:14]} 32. Qe7 {[%clk 0:00:50]}  e5 {[%clk 0:00:12]} 33. Qxf6 {[%clk 0:00:46]}  Rg8 {[%clk 0:00:12]} 34. Qf5+ {[%clk 0:00:40]}  Kh8 {[%clk 0:00:12]} 35. Qxe5+ {[%clk 0:00:39]}  Kh7 {[%clk 0:00:06]} 36. Qf5+ {[%clk 0:00:39]}  Kh8 {[%clk 0:00:07]} 37. Qf6+ {[%clk 0:00:35]}  Kh7 {[%clk 0:00:07]} 38. Qf5+ {[%clk 0:00:32]}  Kh8 {[%clk 0:00:07]} 39. Rc1 {[%clk 0:00:27]}  Qe6 {[%clk 0:00:04]} 40. Rxg8+ {[%clk 0:00:14]}  Kxg8 {[%clk 0:00:05]} 41. Rxc5 {[%clk 0:00:13]}  Qxf5 {[%clk 0:00:04]} 42. Rxf5 {[%clk 0:00:14]}  Ra8 {[%clk 0:00:03]} 43. Kf1 {[%clk 0:00:12]}  a5 {[%clk 0:00:03]} 44. Ke1 {[%clk 0:00:11]}  a4 {[%clk 0:00:04]} 45. Rb5 {[%clk 0:00:11]}  a3 {[%clk 0:00:04]} 46. Rb1 {[%clk 0:00:12]}  a2 {[%clk 0:00:05]} 47. Ra1 {[%clk 0:00:12]}  b5 {[%clk 0:00:03]} 48. Kd2 {[%clk 0:00:13]}  b4 {[%clk 0:00:03]} 49. Kc2 {[%clk 0:00:13]}  Kg7 {[%clk 0:00:03]} 50. Kb3 {[%clk 0:00:13]}  Kf6 {[%clk 0:00:03]} 51. f4 {[%clk 0:00:13]}  Kf5 {[%clk 0:00:03]} 52. Kb2 {[%clk 0:00:11]}  Kxf4 {[%clk 0:00:03]} 53. Rf1+ {[%clk 0:00:10]}  Kg3 {[%clk 0:00:04]} 54. Ka1 {[%clk 0:00:11]}  b3 {[%clk 0:00:03]} 55. Rf3+ {[%clk 0:00:10]}  Kxg2 {[%clk 0:00:04]} 56. Rxb3 {[%clk 0:00:11]}  Rc8 {[%clk 0:00:01]} 57. Rb6 {[%clk 0:00:10]}  Kg3 {[%clk 0:00:01]} 58. Rxh6 {[%clk 0:00:10]}  Kg4 {[%clk 0:00:02]} 59. Rf6 {[%clk 0:00:11]}  Rc7 {[%clk 0:00:02]} 60. h6 {[%clk 0:00:11]}  Kg5 {[%clk 0:00:03]} 61. h7 {[%clk 0:00:12]}  Rc1+ {[%clk 0:00:02]} 62. Kxa2 {[%clk 0:00:12]}  Rh1 {[%clk 0:00:03]} 63. Rxf7 {[%clk 0:00:12]}  Kg6 {[%clk 0:00:04]} 64. Rc7 {[%clk 0:00:13]}  Rxh7 {[%clk 0:00:04]} 65. Rc6+ {[%clk 0:00:13]}  Kg5 {[%clk 0:00:03]} 66. Kb3 {[%clk 0:00:14]}  Rg7 {[%clk 0:00:03]} 67. Kc3 {[%clk 0:00:13]}  Rd7 {[%clk 0:00:03]} 68. Kc4 {[%clk 0:00:14]}  Kg4 {[%clk 0:00:04]} 69. Rc5 {[%clk 0:00:14]}  Kf4 {[%clk 0:00:04]} 70. Rd5 {[%clk 0:00:14]}  Rxd5 {[%clk 0:00:04]} 71. Kxd5 {[%clk 0:00:15]} 1/2-1/2

[Event "January 2 Late 2024"]
[Site "https://www.chess.com"]
[Date "2024.01.02"]
[Round "6"]
[White "Sukandar, Irine Kharisma"]
[Black "Makridis, Dimitrios"]
[Result "0-1"]
[Board "48"]
[TimeControl "180+1"]
[WhiteFideId "7101937"]
[BlackFideId "25864475"]
[WhiteElo "2481"]
[BlackElo "2717"]
[WhiteTeam "INA"]
[BlackTeam "GRE"]
[WhiteClock "0:00:00"]
[BlackClock "0:00:09"]

1. d4 {[%clk 0:03:00]}  c5 {[%clk 0:03:00]} 2. d5 {[%clk 0:02:59]}  d6 {[%clk 0:02:59]} 3. e4 {[%clk 0:02:58]}  Nf6 {[%clk 0:02:56]} 4. Nc3 {[%clk 0:02:58]}  g6 {[%clk 0:02:57]} 5. Nf3 {[%clk 0:02:47]}  Bg7 {[%clk 0:02:56]} 6. Nd2 {[%clk 0:02:45]}  O-O {[%clk 0:02:52]} 7. Nc4 {[%clk 0:02:44]}  Nbd7 {[%clk 0:02:34]} 8. a4 {[%clk 0:02:44]}  Nb6 {[%clk 0:02:33]} 9. a5 {[%clk 0:02:39]}  Nxc4 {[%clk 0:02:31]} 10. Bxc4 {[%clk 0:02:39]}  Ng4 {[%clk 0:02:31]} 11. Be2 {[%clk 0:02:34]}  f5 {[%clk 0:02:27]} 12. exf5 {[%clk 0:02:23]}  gxf5 {[%clk 0:02:28]} 13. Bf4 {[%clk 0:02:15]}  Ne5 {[%clk 0:02:21]} 14. O-O {[%clk 0:02:14]}  Ng6 {[%clk 0:02:21]} 15. Bg5 {[%clk 0:02:09]}  h6 {[%clk 0:02:19]} 16. Bc1 {[%clk 0:02:07]}  f4 {[%clk 0:02:16]} 17. Ra4 {[%clk 0:02:05]}  Bd7 {[%clk 0:02:01]} 18. Rc4 {[%clk 0:01:48]}  a6 {[%clk 0:01:46]} 19. Bh5 {[%clk 0:01:47]}  Bf5 {[%clk 0:01:44]} 20. Bxf4 {[%clk 0:01:35]}  Bxc2 {[%clk 0:01:38]} 21. Qg4 {[%clk 0:01:30]}  Nxf4 {[%clk 0:01:30]} 22. Rxf4 {[%clk 0:01:28]}  Rxf4 {[%clk 0:01:31]} 23. Qxf4 {[%clk 0:01:29]}  Qf8 {[%clk 0:01:30]} 24. Qd2 {[%clk 0:01:18]}  Bf5 {[%clk 0:01:27]} 25. Re1 {[%clk 0:01:18]}  Qf6 {[%clk 0:01:25]} 26. Bf3 {[%clk 0:01:11]}  Rf8 {[%clk 0:01:24]} 27. Be4 {[%clk 0:01:11]}  Bxe4 {[%clk 0:01:18]} 28. Rxe4 {[%clk 0:01:11]}  Qf5 {[%clk 0:01:11]} 29. Re3 {[%clk 0:00:55]}  Bd4 {[%clk 0:01:03]} 30. Rg3+ {[%clk 0:00:44]}  Bg7 {[%clk 0:00:37]} 31. f3 {[%clk 0:00:31]}  Kh8 {[%clk 0:00:27]} 32. Ne4 {[%clk 0:00:31]}  Bd4+ {[%clk 0:00:20]} 33. Kh1 {[%clk 0:00:28]}  Kh7 {[%clk 0:00:17]} 34. h3 {[%clk 0:00:24]}  Qxe4 {[%clk 0:00:15]} 35. Rg7+ {[%clk 0:00:20]}  Kxg7 {[%clk 0:00:10]} 36. fxe4 {[%clk 0:00:20]}  Rf1+ {[%clk 0:00:11]} 37. Kh2 {[%clk 0:00:20]}  Be5+ {[%clk 0:00:12]} 38. g3 {[%clk 0:00:19]}  Rf3 {[%clk 0:00:12]} 39. h4 {[%clk 0:00:06]}  c4 {[%clk 0:00:11]} 40. Qe2 {[%clk 0:00:02]}  Rxg3 {[%clk 0:00:11]} 41. Kh1 {[%clk 0:00:02]}  Rh3+ {[%clk 0:00:09]} 42. Kg1 {[%clk 0:00:02]}  Rxh4 {[%clk 0:00:08]} 43. Qxc4 {[%clk 0:00:01]}  Rg4+ {[%clk 0:00:08]} 44. Kf1 {[%clk 0:00:00]}  h5 {[%clk 0:00:09]} 0-1

[Event "January 2 Late 2024"]
[Site "https://www.chess.com"]
[Date "2024.01.02"]
[Round "6"]
[White "Syaputra, Arifa Rizki"]
[Black "Sroczynski, Maciej"]
[Result "1/2-1/2"]
[Board "50"]
[TimeControl "180+1"]
[WhiteFideId "7105100"]
[BlackFideId "1121472"]
[WhiteElo "2703"]
[BlackElo "2431"]
[WhiteTeam "INA"]
[BlackTeam "POL"]
[WhiteClock "0:00:13"]
[BlackClock "0:00:08"]

1. e4 {[%clk 0:03:00]}  c5 {[%clk 0:02:58]} 2. Nf3 {[%clk 0:03:01]}  d6 {[%clk 0:02:57]} 3. d4 {[%clk 0:03:00]}  cxd4 {[%clk 0:02:58]} 4. Nxd4 {[%clk 0:02:57]}  Nf6 {[%clk 0:02:58]} 5. Nc3 {[%clk 0:02:57]}  a6 {[%clk 0:02:58]} 6. h3 {[%clk 0:02:52]}  e5 {[%clk 0:02:52]} 7. Nf3 {[%clk 0:02:48]}  Qc7 {[%clk 0:02:47]} 8. Bg5 {[%clk 0:02:46]}  Nbd7 {[%clk 0:02:46]} 9. a4 {[%clk 0:02:38]}  b6 {[%clk 0:02:45]} 10. Bd3 {[%clk 0:02:29]}  Be7 {[%clk 0:02:44]} 11. O-O {[%clk 0:02:28]}  Bb7 {[%clk 0:02:39]} 12. Re1 {[%clk 0:02:27]}  O-O {[%clk 0:02:38]} 13. Qe2 {[%clk 0:02:25]}  h6 {[%clk 0:02:31]} 14. Bh4 {[%clk 0:02:19]}  Nc5 {[%clk 0:02:26]} 15. Bxf6 {[%clk 0:02:13]}  Bxf6 {[%clk 0:02:25]} 16. Bc4 {[%clk 0:02:14]}  Ne6 {[%clk 0:01:54]} 17. Bd5 {[%clk 0:01:58]}  Nf4 {[%clk 0:01:51]} 18. Qd2 {[%clk 0:01:58]}  Bxd5 {[%clk 0:01:37]} 19. Nxd5 {[%clk 0:01:57]}  Nxd5 {[%clk 0:01:37]} 20. Qxd5 {[%clk 0:01:58]}  Qxc2 {[%clk 0:01:37]} 21. b4 {[%clk 0:01:39]}  Rac8 {[%clk 0:01:25]} 22. Qxd6 {[%clk 0:01:29]}  Rc6 {[%clk 0:01:25]} 23. Qd7 {[%clk 0:01:25]}  Rd8 {[%clk 0:01:24]} 24. Qb7 {[%clk 0:01:20]}  Rdc8 {[%clk 0:01:04]} 25. Qxa6 {[%clk 0:01:16]}  Qb3 {[%clk 0:00:55]} 26. Rab1 {[%clk 0:01:03]}  Qc4 {[%clk 0:00:52]} 27. Qxc4 {[%clk 0:00:41]}  Rxc4 {[%clk 0:00:53]} 28. Rb3 {[%clk 0:00:38]}  Ra8 {[%clk 0:00:51]} 29. Ra1 {[%clk 0:00:36]}  Rxe4 {[%clk 0:00:47]} 30. Ra2 {[%clk 0:00:31]}  Rc4 {[%clk 0:00:43]} 31. Nd2 {[%clk 0:00:27]}  Rc1+ {[%clk 0:00:37]} 32. Kh2 {[%clk 0:00:28]}  Bg5 {[%clk 0:00:34]} 33. Ne4 {[%clk 0:00:27]}  Be7 {[%clk 0:00:27]} 34. f3 {[%clk 0:00:24]}  f5 {[%clk 0:00:26]} 35. Nc3 {[%clk 0:00:20]}  Bxb4 {[%clk 0:00:23]} 36. Rxb4 {[%clk 0:00:20]}  Rxc3 {[%clk 0:00:23]} 37. Rxb6 {[%clk 0:00:20]}  Rc5 {[%clk 0:00:22]} 38. Rb4 {[%clk 0:00:18]}  Kh7 {[%clk 0:00:16]} 39. Rb7 {[%clk 0:00:17]}  Rca5 {[%clk 0:00:15]} 40. Rd2 {[%clk 0:00:18]}  Rxa4 {[%clk 0:00:13]} 41. Rdd7 {[%clk 0:00:18]}  Rg8 {[%clk 0:00:13]} 42. Rd5 {[%clk 0:00:18]}  e4 {[%clk 0:00:11]} 43. Rxf5 {[%clk 0:00:18]}  exf3 {[%clk 0:00:11]} 44. Rxf3 {[%clk 0:00:19]}  Ra6 {[%clk 0:00:12]} 45. Rff7 {[%clk 0:00:17]}  Rg6 {[%clk 0:00:11]} 46. h4 {[%clk 0:00:17]}  Ra8 {[%clk 0:00:10]} 47. Ra7 {[%clk 0:00:14]}  Rb8 {[%clk 0:00:08]} 48. Rab7 {[%clk 0:00:13]} 1/2-1/2

[Event "January 2 Late 2024"]
[Site "https://www.chess.com"]
[Date "2024.01.02"]
[Round "6"]
[White "Shohat, Yotam"]
[Black "Grigoriants, Sergey"]
[Result "0-1"]
[Board "53"]
[TimeControl "180+1"]
[WhiteFideId "2813955"]
[BlackFideId "4130804"]
[WhiteElo "2370"]
[BlackElo "2935"]
[WhiteTeam "ISR"]
[BlackTeam "HUN"]
[WhiteClock "0:00:00"]
[BlackClock "0:00:07"]

1. e4 {[%clk 0:03:00]}  c5 {[%clk 0:02:58]} 2. Nc3 {[%clk 0:03:00]}  Nc6 {[%clk 0:02:57]} 3. Bb5 {[%clk 0:03:01]}  Nd4 {[%clk 0:02:55]} 4. Nf3 {[%clk 0:03:01]}  e6 {[%clk 0:02:54]} 5. Nxd4 {[%clk 0:02:56]}  cxd4 {[%clk 0:02:54]} 6. Ne2 {[%clk 0:02:57]}  Qg5 {[%clk 0:02:51]} 7. a4 {[%clk 0:02:16]}  Qxg2 {[%clk 0:02:28]} 8. Ng3 {[%clk 0:02:15]}  Qh3 {[%clk 0:02:27]} 9. c3 {[%clk 0:02:05]}  a6 {[%clk 0:01:55]} 10. Bf1 {[%clk 0:02:04]}  Qh4 {[%clk 0:01:54]} 11. cxd4 {[%clk 0:02:03]}  Nf6 {[%clk 0:01:52]} 12. d3 {[%clk 0:02:02]}  d5 {[%clk 0:01:51]} 13. Bg2 {[%clk 0:01:56]}  Be7 {[%clk 0:01:41]} 14. O-O {[%clk 0:01:43]}  O-O {[%clk 0:01:40]} 15. Qe2 {[%clk 0:01:26]}  Bd7 {[%clk 0:01:37]} 16. e5 {[%clk 0:01:08]}  Ng4 {[%clk 0:01:24]} 17. h3 {[%clk 0:01:08]}  Nh6 {[%clk 0:01:24]} 18. Be3 {[%clk 0:01:07]}  f5 {[%clk 0:01:18]} 19. exf6 {[%clk 0:00:45]}  Rxf6 {[%clk 0:01:18]} 20. Bxh6 {[%clk 0:00:33]}  Rxh6 {[%clk 0:01:13]} 21. Qg4 {[%clk 0:00:33]}  Qf6 {[%clk 0:01:03]} 22. Rae1 {[%clk 0:00:25]}  Bd6 {[%clk 0:00:48]} 23. Nh5 {[%clk 0:00:21]}  Qf7 {[%clk 0:00:45]} 24. Ng3 {[%clk 0:00:15]}  Rf8 {[%clk 0:00:43]} 25. f4 {[%clk 0:00:13]}  Rg6 {[%clk 0:00:31]} 26. Qf3 {[%clk 0:00:05]}  Qxf4 {[%clk 0:00:31]} 27. Qxf4 {[%clk 0:00:04]}  Rxf4 {[%clk 0:00:32]} 28. Rxf4 {[%clk 0:00:03]}  Bxf4 {[%clk 0:00:33]} 29. Ne2 {[%clk 0:00:04]}  Bd6 {[%clk 0:00:31]} 30. Rf1 {[%clk 0:00:03]}  Bxa4 {[%clk 0:00:30]} 31. Nf4 {[%clk 0:00:03]}  Rf6 {[%clk 0:00:29]} 32. Nxe6 {[%clk 0:00:04]}  Rxe6 {[%clk 0:00:17]} 33. Bxd5 {[%clk 0:00:04]}  Bd7 {[%clk 0:00:18]} 34. Rf3 {[%clk 0:00:02]}  g6 {[%clk 0:00:17]} 35. Kf2 {[%clk 0:00:02]}  Kg7 {[%clk 0:00:17]} 36. Bxe6 {[%clk 0:00:03]}  Bxe6 {[%clk 0:00:18]} 37. Re3 {[%clk 0:00:02]}  Kf6 {[%clk 0:00:17]} 38. Rf3+ {[%clk 0:00:03]}  Bf5 {[%clk 0:00:18]} 39. Ke3 {[%clk 0:00:03]}  Ke6 {[%clk 0:00:16]} 40. h4 {[%clk 0:00:04]}  h5 {[%clk 0:00:16]} 41. Rf1 {[%clk 0:00:03]}  Be7 {[%clk 0:00:16]} 42. Rh1 {[%clk 0:00:02]}  a5 {[%clk 0:00:15]} 43. Rh2 {[%clk 0:00:03]}  a4 {[%clk 0:00:15]} 44. Rc2 {[%clk 0:00:03]}  Bxh4 {[%clk 0:00:14]} 45. Rc4 {[%clk 0:00:03]}  Bg5+ {[%clk 0:00:14]} 46. Ke2 {[%clk 0:00:04]}  b5 {[%clk 0:00:13]} 47. Rc5 {[%clk 0:00:03]}  b4 {[%clk 0:00:12]} 48. Re5+ {[%clk 0:00:03]}  Kd6 {[%clk 0:00:12]} 49. Rb5 {[%clk 0:00:04]}  b3 {[%clk 0:00:10]} 50. Ra5 {[%clk 0:00:02]}  Bc1 {[%clk 0:00:08]} 51. Rxa4 {[%clk 0:00:02]}  Bxb2 {[%clk 0:00:09]} 52. Ra6+ {[%clk 0:00:02]}  Kd5 {[%clk 0:00:08]} 53. Rb6 {[%clk 0:00:02]}  Bxd4 {[%clk 0:00:08]} 54. Rxb3 {[%clk 0:00:03]}  Bg4+ {[%clk 0:00:08]} 55. Kd2 {[%clk 0:00:02]}  Ke5 {[%clk 0:00:08]} 56. Rb5+ {[%clk 0:00:02]}  Kf6 {[%clk 0:00:08]} 57. Rb4 {[%clk 0:00:03]}  Bc5 {[%clk 0:00:08]} 58. Rc4 {[%clk 0:00:03]}  Bd6 {[%clk 0:00:08]} 59. d4 {[%clk 0:00:03]}  h4 {[%clk 0:00:07]} 60. d5 {[%clk 0:00:03]}  Kf5 {[%clk 0:00:07]} 61. Rc6 {[%clk 0:00:03]}  Bf4+ {[%clk 0:00:06]} 62. Kd3 {[%clk 0:00:03]}  Bf3 {[%clk 0:00:07]} 63. Kd4 {[%clk 0:00:03]}  h3 {[%clk 0:00:06]} 64. Rc2 {[%clk 0:00:02]}  h2 {[%clk 0:00:06]} 65. Rxh2 {[%clk 0:00:01]}  Bxh2 {[%clk 0:00:07]} 66. Kc5 {[%clk 0:00:00]}  g5 {[%clk 0:00:07]} 0-1

[Event "January 2 Late 2024"]
[Site "https://www.chess.com"]
[Date "2024.01.02"]
[Round "6"]
[White "Mekhitarian, Krikor Sevag"]
[Black "Rama, Tejas"]
[Result "1/2-1/2"]
[Board "57"]
[TimeControl "180+1"]
[WhiteFideId "2107660"]
[BlackFideId "30907381"]
[WhiteElo "2831"]
[BlackElo "2553"]
[WhiteTeam "BRA"]
[BlackTeam "USA"]
[WhiteClock "0:00:02"]
[BlackClock "0:00:10"]

1. Nf3 {[%clk 0:02:57]}  Nf6 {[%clk 0:02:58]} 2. c4 {[%clk 0:02:57]}  e6 {[%clk 0:02:58]} 3. Nc3 {[%clk 0:02:53]}  d5 {[%clk 0:02:58]} 4. cxd5 {[%clk 0:02:53]}  exd5 {[%clk 0:02:58]} 5. d4 {[%clk 0:02:53]}  c6 {[%clk 0:02:58]} 6. Bf4 {[%clk 0:02:52]}  Bd6 {[%clk 0:02:57]} 7. Bxd6 {[%clk 0:02:51]}  Qxd6 {[%clk 0:02:58]} 8. e3 {[%clk 0:02:51]}  O-O {[%clk 0:02:58]} 9. Qb3 {[%clk 0:02:50]}  Nbd7 {[%clk 0:02:44]} 10. Bd3 {[%clk 0:02:49]}  Re8 {[%clk 0:02:33]} 11. O-O {[%clk 0:02:43]}  Ne4 {[%clk 0:02:21]} 12. Qc2 {[%clk 0:02:40]}  Ndf6 {[%clk 0:02:13]} 13. Ne5 {[%clk 0:02:39]}  Nxc3 {[%clk 0:02:00]} 14. bxc3 {[%clk 0:02:37]}  h6 {[%clk 0:01:56]} 15. Rab1 {[%clk 0:02:26]}  c5 {[%clk 0:01:41]} 16. f3 {[%clk 0:01:37]}  c4 {[%clk 0:01:30]} 17. Bf5 {[%clk 0:01:32]}  Bxf5 {[%clk 0:01:21]} 18. Qxf5 {[%clk 0:01:32]}  Re7 {[%clk 0:01:18]} 19. a4 {[%clk 0:01:24]}  Ne8 {[%clk 0:00:54]} 20. e4 {[%clk 0:01:18]}  Qf6 {[%clk 0:00:36]} 21. Qh3 {[%clk 0:01:01]}  Qa6 {[%clk 0:00:29]} 22. exd5 {[%clk 0:00:56]}  Qxa4 {[%clk 0:00:24]} 23. f4 {[%clk 0:00:49]}  Qa5 {[%clk 0:00:22]} 24. Qf3 {[%clk 0:00:46]}  Rd8 {[%clk 0:00:21]} 25. Nxc4 {[%clk 0:00:36]}  Qxd5 {[%clk 0:00:21]} 26. Qxd5 {[%clk 0:00:35]}  Rxd5 {[%clk 0:00:22]} 27. Rfe1 {[%clk 0:00:28]}  Kf8 {[%clk 0:00:21]} 28. Kf2 {[%clk 0:00:25]}  Rxe1 {[%clk 0:00:21]} 29. Kxe1 {[%clk 0:00:22]}  Rd7 {[%clk 0:00:18]} 30. Kd2 {[%clk 0:00:22]}  Rc7 {[%clk 0:00:18]} 31. Kd3 {[%clk 0:00:22]}  Ke7 {[%clk 0:00:17]} 32. Ra1 {[%clk 0:00:21]}  a6 {[%clk 0:00:17]} 33. Rb1 {[%clk 0:00:19]}  Nf6 {[%clk 0:00:15]} 34. g3 {[%clk 0:00:18]}  Nd5 {[%clk 0:00:14]} 35. Rb3 {[%clk 0:00:18]}  b5 {[%clk 0:00:13]} 36. Ne5 {[%clk 0:00:18]}  f6 {[%clk 0:00:13]} 37. Nf3 {[%clk 0:00:16]}  Nb6 {[%clk 0:00:10]} 38. Nd2 {[%clk 0:00:13]}  Kd6 {[%clk 0:00:10]} 39. Ne4+ {[%clk 0:00:13]}  Kd5 {[%clk 0:00:10]} 40. Nc5 {[%clk 0:00:13]}  Ra7 {[%clk 0:00:10]} 41. Ra3 {[%clk 0:00:11]}  a5 {[%clk 0:00:10]} 42. Rb3 {[%clk 0:00:07]}  b4 {[%clk 0:00:09]} 43. cxb4 {[%clk 0:00:07]}  axb4 {[%clk 0:00:10]} 44. Rxb4 {[%clk 0:00:06]}  Ra3+ {[%clk 0:00:10]} 45. Rb3 {[%clk 0:00:07]}  Rxb3+ {[%clk 0:00:10]} 46. Nxb3 {[%clk 0:00:07]}  Nc4 {[%clk 0:00:09]} 47. Nc1 {[%clk 0:00:02]}  Nb2+ {[%clk 0:00:08]} 48. Kc2 {[%clk 0:00:02]}  Nc4 {[%clk 0:00:07]} 49. Kc3 {[%clk 0:00:03]}  Ne3 {[%clk 0:00:07]} 50. Ne2 {[%clk 0:00:02]}  Nf1 {[%clk 0:00:07]} 51. h3 {[%clk 0:00:01]}  h5 {[%clk 0:00:06]} 52. Kd3 {[%clk 0:00:02]}  h4 {[%clk 0:00:06]} 53. gxh4 {[%clk 0:00:02]}  Nh2 {[%clk 0:00:06]} 54. Ke3 {[%clk 0:00:02]}  Nf1+ {[%clk 0:00:06]} 55. Kf2 {[%clk 0:00:03]}  Nd2 {[%clk 0:00:06]} 56. Ke3 {[%clk 0:00:03]}  Nf1+ {[%clk 0:00:06]} 57. Kf3 {[%clk 0:00:03]}  Nd2+ {[%clk 0:00:07]} 58. Kg4 {[%clk 0:00:04]}  Ke4 {[%clk 0:00:07]} 59. Ng3+ {[%clk 0:00:04]}  Kxd4 {[%clk 0:00:07]} 60. Nf5+ {[%clk 0:00:04]}  Ke4 {[%clk 0:00:07]} 61. Nxg7 {[%clk 0:00:05]}  Nf1 {[%clk 0:00:06]} 62. h5 {[%clk 0:00:04]}  Ne3+ {[%clk 0:00:06]} 63. Kg3 {[%clk 0:00:02]}  Nd5 {[%clk 0:00:06]} 64. Ne6 {[%clk 0:00:01]}  Kf5 {[%clk 0:00:07]} 65. Nd4+ {[%clk 0:00:02]}  Ke4 {[%clk 0:00:06]} 66. h6 {[%clk 0:00:01]}  Nxf4 {[%clk 0:00:07]} 67. h7 {[%clk 0:00:01]}  Ng6 {[%clk 0:00:07]} 68. Kg4 {[%clk 0:00:02]}  Kxd4 {[%clk 0:00:07]} 69. Kf5 {[%clk 0:00:02]}  Nh8 {[%clk 0:00:07]} 70. Kxf6 {[%clk 0:00:03]}  Kd5 {[%clk 0:00:08]} 71. Kg7 {[%clk 0:00:01]}  Ke6 {[%clk 0:00:08]} 72. h4 {[%clk 0:00:01]}  Ke7 {[%clk 0:00:08]} 73. h5 {[%clk 0:00:01]}  Ke8 {[%clk 0:00:08]} 74. Kg8 {[%clk 0:00:01]}  Ke7 {[%clk 0:00:08]} 75. Kg7 {[%clk 0:00:02]}  Ke8 {[%clk 0:00:08]} 76. Kf6 {[%clk 0:00:02]}  Kf8 {[%clk 0:00:09]} 77. h6 {[%clk 0:00:03]}  Ke8 {[%clk 0:00:09]} 78. Kg7 {[%clk 0:00:02]}  Ke7 {[%clk 0:00:10]} 79. Kxh8 {[%clk 0:00:02]}  Kf8 {[%clk 0:00:10]} 1/2-1/2

[Event "January 2 Late 2024"]
[Site "https://www.chess.com"]
[Date "2024.01.02"]
[Round "6"]
[White "Asish Panda"]
[Black "Seemann, Jakub"]
[Result "1-0"]
[Board "59"]
[TimeControl "180+1"]
[WhiteFideId "45012458"]
[BlackFideId "21874697"]
[WhiteElo "2549"]
[BlackElo "2804"]
[WhiteTeam "IND"]
[BlackTeam "POL"]
[WhiteClock "0:00:04"]
[BlackClock "0:00:00"]

1. e4 {[%clk 0:03:00]}  e6 {[%clk 0:02:58]} 2. Nf3 {[%clk 0:02:57]}  d5 {[%clk 0:02:58]} 3. Nc3 {[%clk 0:02:53]}  dxe4 {[%clk 0:02:58]} 4. Nxe4 {[%clk 0:02:53]}  Bd7 {[%clk 0:02:59]} 5. d4 {[%clk 0:02:53]}  Bc6 {[%clk 0:02:58]} 6. Bd3 {[%clk 0:02:51]}  Nd7 {[%clk 0:02:59]} 7. Qe2 {[%clk 0:02:51]}  Ngf6 {[%clk 0:02:58]} 8. Bg5 {[%clk 0:02:50]}  Be7 {[%clk 0:02:58]} 9. O-O-O {[%clk 0:02:47]}  O-O {[%clk 0:02:56]} 10. Nxf6+ {[%clk 0:02:43]}  Bxf6 {[%clk 0:02:54]} 11. Bxf6 {[%clk 0:02:42]}  Qxf6 {[%clk 0:02:51]} 12. Ne5 {[%clk 0:02:43]}  Nxe5 {[%clk 0:02:50]} 13. dxe5 {[%clk 0:02:44]}  Qe7 {[%clk 0:02:50]} 14. f4 {[%clk 0:02:41]}  Rfd8 {[%clk 0:02:43]} 15. Kb1 {[%clk 0:02:39]}  h6 {[%clk 0:02:39]} 16. Rhg1 {[%clk 0:02:35]}  a5 {[%clk 0:02:36]} 17. g4 {[%clk 0:02:35]}  a4 {[%clk 0:02:33]} 18. g5 {[%clk 0:02:34]}  h5 {[%clk 0:01:58]} 19. Qxh5 {[%clk 0:02:30]}  g6 {[%clk 0:01:58]} 20. Bxg6 {[%clk 0:02:20]}  fxg6 {[%clk 0:01:57]} 21. Qxg6+ {[%clk 0:02:20]}  Kf8 {[%clk 0:01:53]} 22. Qh6+ {[%clk 0:02:18]}  Kg8 {[%clk 0:01:50]} 23. Qg6+ {[%clk 0:02:10]}  Kf8 {[%clk 0:01:25]} 24. Qh6+ {[%clk 0:02:06]}  Qg7 {[%clk 0:01:25]} 25. Qxe6 {[%clk 0:02:03]}  Be4 {[%clk 0:01:25]} 26. Rde1 {[%clk 0:01:37]}  Qg6 {[%clk 0:01:17]} 27. Qf6+ {[%clk 0:01:35]}  Kg8 {[%clk 0:01:09]} 28. Re2 {[%clk 0:01:08]}  a3 {[%clk 0:01:04]} 29. bxa3 {[%clk 0:01:04]}  Rf8 {[%clk 0:00:54]} 30. Qxg6+ {[%clk 0:01:00]}  Bxg6 {[%clk 0:00:55]} 31. Rf2 {[%clk 0:00:47]}  Rxa3 {[%clk 0:00:53]} 32. Rd1 {[%clk 0:00:45]}  Ra4 {[%clk 0:00:49]} 33. Rd7 {[%clk 0:00:38]}  Rc4 {[%clk 0:00:47]} 34. e6 {[%clk 0:00:32]}  Bf5 {[%clk 0:00:45]} 35. Re2 {[%clk 0:00:21]}  Re8 {[%clk 0:00:40]} 36. Re5 {[%clk 0:00:14]}  Bxe6 {[%clk 0:00:35]} 37. Rd2 {[%clk 0:00:11]}  Rc6 {[%clk 0:00:26]} 38. Rde2 {[%clk 0:00:10]}  Rb6+ {[%clk 0:00:09]} 39. Kc1 {[%clk 0:00:10]}  Kf8 {[%clk 0:00:09]} 40. g6 {[%clk 0:00:05]}  Bd7 {[%clk 0:00:02]} 41. g7+ {[%clk 0:00:04]}  Kxg7 {[%clk 0:00:03]} 42. Rxe8 {[%clk 0:00:05]}  Bxe8 {[%clk 0:00:04]} 43. Rxe8 {[%clk 0:00:05]}  Rc6 {[%clk 0:00:03]} 44. Re5 {[%clk 0:00:05]}  Kf6 {[%clk 0:00:03]} 45. Kd2 {[%clk 0:00:05]}  Rc4 {[%clk 0:00:04]} 46. Re3 {[%clk 0:00:02]}  Rxf4 {[%clk 0:00:03]} 47. Rd3 {[%clk 0:00:02]}  Rh4 {[%clk 0:00:04]} 48. Rd7 {[%clk 0:00:02]}  Rxh2+ {[%clk 0:00:03]} 49. Kc3 {[%clk 0:00:03]}  Rh3+ {[%clk 0:00:03]} 50. Kb2 {[%clk 0:00:03]}  c5 {[%clk 0:00:02]} 51. Rxb7 {[%clk 0:00:04]}  Ke5 {[%clk 0:00:02]} 52. Rd7 {[%clk 0:00:04]}  Ke6 {[%clk 0:00:02]} 53. Rd2 {[%clk 0:00:04]}  Rh4 {[%clk 0:00:03]} 54. c3 {[%clk 0:00:04]}  Rh3 {[%clk 0:00:03]} 55. Kb3 {[%clk 0:00:04]}  Rh4 {[%clk 0:00:04]} 56. a4 {[%clk 0:00:05]}  Rg4 {[%clk 0:00:03]} 57. a5 {[%clk 0:00:05]}  Rh4 {[%clk 0:00:03]} 58. a6 {[%clk 0:00:05]}  Rg4 {[%clk 0:00:02]} 59. a7 {[%clk 0:00:02]}  Rg8 {[%clk 0:00:02]} 60. Ra2 {[%clk 0:00:03]}  Kd5 {[%clk 0:00:02]} 61. a8=Q+ {[%clk 0:00:03]}  Rxa8 {[%clk 0:00:02]} 62. Rxa8 {[%clk 0:00:03]}  Kc6 {[%clk 0:00:00]} 63. Kc4 {[%clk 0:00:04]} 1-0